[Event "*** Titled Tuesday Blitz"]
[Site "Chess.com"]
[Date "2021.03.02"]
[Round "2"]
[White "Grimlock_Glasgow"]
[Black "Homyakova_Elena"]
[Result "0-1"]
[WhiteElo "2453"]
[BlackElo "2284"]
[TimeControl "180+1"]
[EndTime "10:18:09 PST"]
[Termination "Homyakova_Elena won on time"]

1. e4 {[%clk 0:03:00.9]} 1... c5 {[%clk 0:02:59.6]} 2. Nc3 {[%clk 0:03:00.9]}
2... g6 {[%clk 0:02:56.1]} 3. d4 {[%clk 0:02:59.8]} 3... cxd4 {[%clk 0:02:54.4]}
4. Qxd4 {[%clk 0:03:00.7]} 4... Nf6 {[%clk 0:02:50.2]} 5. Be3 {[%clk 0:03:01.2]}
5... Nc6 {[%clk 0:02:49.5]} 6. Qd2 {[%clk 0:03:01.7]} 6... Bg7 {[%clk
0:02:47.7]} 7. O-O-O {[%clk 0:03:02.2]} 7... O-O {[%clk 0:02:41.6]} 8. f3 {[%clk
0:03:02.2]} 8... d6 {[%clk 0:02:34.2]} 9. h4 {[%clk 0:03:01.3]} 9... h5 {[%clk
0:02:28.7]} 10. Nd5 {[%clk 0:02:51]} 10... Be6 {[%clk 0:01:47]} 11. g4 {[%clk
0:02:44.8]} 11... Bxd5 {[%clk 0:01:28.7]} 12. exd5 {[%clk 0:02:45.7]} 12... Ne5
{[%clk 0:01:28.3]} 13. gxh5 {[%clk 0:02:28.2]} 13... Nxh5 {[%clk 0:01:27.4]} 14.
f4 {[%clk 0:02:24.8]} 14... Ng4 {[%clk 0:01:26.1]} 15. Be2 {[%clk 0:02:09.8]}
15... Nxe3 {[%clk 0:01:14.6]} 16. Qxe3 {[%clk 0:02:10.7]} 16... Qb6 {[%clk
0:01:14.2]} 17. Qxb6 {[%clk 0:02:08.4]} 17... axb6 {[%clk 0:01:14.3]} 18. Bxh5
{[%clk 0:02:07.8]} 18... gxh5 {[%clk 0:01:13]} 19. a3 {[%clk 0:02:03]} 19... Ra4
{[%clk 0:01:11.9]} 20. Ne2 {[%clk 0:01:47]} 20... b5 {[%clk 0:01:09.9]} 21. c3
{[%clk 0:01:46.1]} 21... Rc8 {[%clk 0:01:06]} 22. Kb1 {[%clk 0:01:30.5]} 22...
Re4 {[%clk 0:01:04.6]} 23. Ng3 {[%clk 0:01:18.6]} 23... Rxf4 {[%clk 0:01:01.1]}
24. Rhg1 {[%clk 0:01:11.4]} 24... Rg4 {[%clk 0:00:26]} 25. Nxh5 {[%clk
0:01:10.4]} 25... Rcc4 {[%clk 0:00:25.1]} 26. Rde1 {[%clk 0:00:57.1]} 26... Kf8
{[%clk 0:00:22]} 27. Ng3 {[%clk 0:00:36.9]} 27... Rxh4 {[%clk 0:00:18.8]} 28.
Nf5 {[%clk 0:00:36.7]} 28... Rhg4 {[%clk 0:00:17.1]} 29. Rxg4 {[%clk 0:00:34.2]}
29... Rxg4 {[%clk 0:00:18]} 30. Nxe7 {[%clk 0:00:33.7]} 30... Be5 {[%clk
0:00:17.4]} 31. Nc8 {[%clk 0:00:24.3]} 31... f5 {[%clk 0:00:15.7]} 32. Rf1
{[%clk 0:00:09]} 32... f4 {[%clk 0:00:14.4]} 33. Na7 {[%clk 0:00:06.6]} 33...
Kf7 {[%clk 0:00:14.2]} 34. Nxb5 {[%clk 0:00:06.5]} 34... Kf6 {[%clk 0:00:14.5]}
35. Nd4 {[%clk 0:00:06.6]} 35... Kg5 {[%clk 0:00:12.3]} 36. Kc2 {[%clk
0:00:06.3]} 36... Rg2+ {[%clk 0:00:10.4]} 37. Kb3 {[%clk 0:00:06.1]} 37... Bxd4
{[%clk 0:00:10.3]} 38. cxd4 {[%clk 0:00:05.7]} 38... Kg4 {[%clk 0:00:10.7]} 39.
Kc3 {[%clk 0:00:04.4]} 39... f3 {[%clk 0:00:11.1]} 40. b4 {[%clk 0:00:03.7]}
40... f2 {[%clk 0:00:10.4]} 41. Kd2 {[%clk 0:00:02.7]} 41... Kf3 {[%clk
0:00:10.9]} 0-1

[Event "*** Titled Tuesday Blitz"]
[Site "Chess.com"]
[Date "2021.03.02"]
[Round "2"]
[White "arminmusovic"]
[Black "Elshan1985"]
[Result "0-1"]
[WhiteElo "2547"]
[BlackElo "2886"]
[TimeControl "180+1"]
[EndTime "10:18:10 PST"]
[Termination "Elshan1985 won by resignation"]

1. a3 {[%clk 0:03:00.9]} 1... g6 {[%clk 0:02:43.4]} 2. Nc3 {[%clk 0:03:01.8]}
2... Bg7 {[%clk 0:02:43.5]} 3. d4 {[%clk 0:03:02.2]} 3... d5 {[%clk 0:02:43]} 4.
Bg5 {[%clk 0:03:02.4]} 4... h6 {[%clk 0:02:42.7]} 5. Bh4 {[%clk 0:03:02.4]} 5...
c5 {[%clk 0:02:40.6]} 6. e3 {[%clk 0:03:03]} 6... cxd4 {[%clk 0:02:39.8]} 7.
exd4 {[%clk 0:03:03.1]} 7... Nc6 {[%clk 0:02:40.7]} 8. Nf3 {[%clk 0:03:03]} 8...
Bg4 {[%clk 0:02:39.8]} 9. Bb5 {[%clk 0:03:02.9]} 9... Rc8 {[%clk 0:02:37.3]} 10.
O-O {[%clk 0:03:00.2]} 10... a6 {[%clk 0:02:37.5]} 11. Ba4 {[%clk 0:02:59.1]}
11... Qd7 {[%clk 0:02:33.3]} 12. h3 {[%clk 0:02:55.7]} 12... Bxf3 {[%clk
0:02:32.8]} 13. Qxf3 {[%clk 0:02:56.3]} 13... b5 {[%clk 0:02:33.1]} 14. Bb3
{[%clk 0:02:56.4]} 14... Nxd4 {[%clk 0:02:33.2]} 15. Qxd5 {[%clk 0:02:56.8]}
15... Nxb3 {[%clk 0:02:31.2]} 16. Qxb3 {[%clk 0:02:40.9]} 16... Bxc3 {[%clk
0:02:30.5]} 17. bxc3 {[%clk 0:02:40.7]} 17... Rc4 {[%clk 0:02:29.9]} 18. a4
{[%clk 0:02:10]} 18... Kf8 {[%clk 0:02:06.7]} 19. axb5 {[%clk 0:02:07]} 19...
Qxb5 {[%clk 0:02:07.2]} 20. Bg3 {[%clk 0:02:01.7]} 20... Nf6 {[%clk 0:02:04.8]}
21. Rfe1 {[%clk 0:01:58.4]} 21... Nd5 {[%clk 0:01:43]} 22. Be5 {[%clk
0:01:54.2]} 22... f6 {[%clk 0:01:41.5]} 23. Bd4 {[%clk 0:01:51.5]} 23... Kf7
{[%clk 0:01:40.2]} 24. Qxb5 {[%clk 0:01:48.3]} 24... axb5 {[%clk 0:01:40.2]} 25.
Ra7 {[%clk 0:01:49.2]} 25... Rc7 {[%clk 0:01:35.1]} 26. Rxc7 {[%clk 0:01:40]}
26... Nxc7 {[%clk 0:01:36]} 27. Rb1 {[%clk 0:01:40.4]} 27... Rc8 {[%clk
0:01:31.7]} 28. Bb6 {[%clk 0:01:37]} 28... Nd5 {[%clk 0:01:25.3]} 29. Rxb5
{[%clk 0:01:37.2]} 29... Nxc3 {[%clk 0:01:25.1]} 30. Ra5 {[%clk 0:01:25.5]}
30... Ne2+ {[%clk 0:01:21.9]} 31. Kf1 {[%clk 0:01:21.8]} 31... Rxc2 {[%clk
0:01:22.5]} 32. Be3 {[%clk 0:01:22.4]} 32... g5 {[%clk 0:01:14.6]} 33. Rc5
{[%clk 0:01:17.9]} 33... Rxc5 {[%clk 0:01:11.5]} 34. Bxc5 {[%clk 0:01:18.8]}
34... Nc1 {[%clk 0:01:11.8]} 35. Ba3 {[%clk 0:01:15.8]} 35... Nd3 {[%clk
0:01:12]} 36. g3 {[%clk 0:01:14.7]} 36... Ne5 {[%clk 0:01:11.4]} 37. Ke2 {[%clk
0:01:14.5]} 37... Nc4 {[%clk 0:01:11.7]} 38. Bc1 {[%clk 0:01:14.4]} 38... e5
{[%clk 0:01:11.6]} 39. f4 {[%clk 0:01:14.2]} 39... e4 {[%clk 0:01:08.5]} 40. f5
{[%clk 0:01:10.4]} 40... h5 {[%clk 0:01:07.4]} 41. h4 {[%clk 0:01:06.9]} 41...
gxh4 {[%clk 0:01:01.8]} 42. gxh4 {[%clk 0:01:07.8]} 42... Nd6 {[%clk 0:01:01.8]}
43. Ke3 {[%clk 0:01:06.6]} 43... Nxf5+ {[%clk 0:01:02.4]} 44. Kxe4 {[%clk
0:01:06.1]} 44... Nxh4 {[%clk 0:01:03]} 45. Kf4 {[%clk 0:00:56]} 45... Kg6
{[%clk 0:01:02.4]} 46. Bb2 {[%clk 0:00:55.7]} 46... Nf5 {[%clk 0:01:03.3]} 47.
Bc3 {[%clk 0:00:54.5]} 47... Ng7 {[%clk 0:01:02.9]} 48. Bd2 {[%clk 0:00:52.4]}
48... Ne6+ {[%clk 0:01:03.2]} 49. Ke4 {[%clk 0:00:51.9]} 49... f5+ {[%clk
0:00:51.9]} 50. Ke5 {[%clk 0:00:50.5]} 50... Ng5 {[%clk 0:00:51.8]} 51. Kf4
{[%clk 0:00:49.3]} 51... Ne4 {[%clk 0:00:51.8]} 52. Be1 {[%clk 0:00:48.9]} 52...
Nf6 {[%clk 0:00:44.4]} 53. Bh4 {[%clk 0:00:45.8]} 53... Nd5+ {[%clk 0:00:44.3]}
54. Ke5 {[%clk 0:00:46.3]} 54... Ne3 {[%clk 0:00:44.4]} 55. Bg3 {[%clk 0:00:40]}
55... Ng2 {[%clk 0:00:44.9]} 56. Bf2 {[%clk 0:00:32.9]} 56... Kg5 {[%clk
0:00:43.9]} 57. Bg1 {[%clk 0:00:32.4]} 57... Kg4 {[%clk 0:00:44.1]} 58. Bh2
{[%clk 0:00:32.2]} 58... f4 {[%clk 0:00:43.8]} 59. Ke4 {[%clk 0:00:31.9]} 59...
h4 {[%clk 0:00:42.5]} 60. Bg1 {[%clk 0:00:31]} 60... Kg3 {[%clk 0:00:41.3]} 61.
Kf5 {[%clk 0:00:29]} 61... f3 {[%clk 0:00:38.1]} 62. Kg5 {[%clk 0:00:27]} 62...
h3 {[%clk 0:00:34.2]} 63. Kh5 {[%clk 0:00:23.9]} 63... h2 {[%clk 0:00:32.9]} 0-1

[Event "*** Titled Tuesday Blitz"]
[Site "Chess.com"]
[Date "2021.03.02"]
[Round "2"]
[White "Treacherous_horse64"]
[Black "ulkaf961"]
[Result "0-1"]
[WhiteElo "2613"]
[BlackElo "2362"]
[TimeControl "180+1"]
[EndTime "10:18:10 PST"]
[Termination "ulkaf961 won by checkmate"]

1. d4 {[%clk 0:02:59.2]} 1... d5 {[%clk 0:02:59.6]} 2. Nf3 {[%clk 0:02:58]} 2...
e6 {[%clk 0:02:56.5]} 3. c4 {[%clk 0:02:56.4]} 3... a6 {[%clk 0:02:56.4]} 4. e3
{[%clk 0:02:39.3]} 4... Nf6 {[%clk 0:02:50.1]} 5. b3 {[%clk 0:02:38.9]} 5... b6
{[%clk 0:02:17.3]} 6. Bb2 {[%clk 0:02:36]} 6... Bb7 {[%clk 0:02:17.4]} 7. Bd3
{[%clk 0:02:36]} 7... Bd6 {[%clk 0:02:11.8]} 8. O-O {[%clk 0:02:35.5]} 8... O-O
{[%clk 0:02:09]} 9. Nc3 {[%clk 0:02:22.9]} 9... Nbd7 {[%clk 0:02:06.7]} 10. Rc1
{[%clk 0:02:16.3]} 10... Qe7 {[%clk 0:02:04.4]} 11. Qc2 {[%clk 0:02:00.3]} 11...
h6 {[%clk 0:01:48.2]} 12. e4 {[%clk 0:01:59]} 12... dxe4 {[%clk 0:01:47.4]} 13.
Nxe4 {[%clk 0:01:59.9]} 13... Nxe4 {[%clk 0:01:47.3]} 14. Bxe4 {[%clk
0:02:00.8]} 14... Bxe4 {[%clk 0:01:46.8]} 15. Qxe4 {[%clk 0:02:01.7]} 15... Nf6
{[%clk 0:01:23]} 16. Qe2 {[%clk 0:02:00.7]} 16... Ba3 {[%clk 0:01:21]} 17. Bxa3
{[%clk 0:01:53.2]} 17... Qxa3 {[%clk 0:01:20.9]} 18. h3 {[%clk 0:01:51.1]} 18...
Rfd8 {[%clk 0:01:18.1]} 19. Rfd1 {[%clk 0:01:50.4]} 19... a5 {[%clk 0:01:12.1]}
20. Rc3 {[%clk 0:01:48.4]} 20... a4 {[%clk 0:00:56.5]} 21. Ne5 {[%clk
0:01:43.6]} 21... axb3 {[%clk 0:00:54.1]} 22. axb3 {[%clk 0:01:42.7]} 22... c5
{[%clk 0:00:38.9]} 23. Rg3 {[%clk 0:01:08.2]} 23... Rxd4 {[%clk 0:00:20]} 24.
Rxd4 {[%clk 0:01:06.1]} 24... cxd4 {[%clk 0:00:20]} 25. Qf3 {[%clk 0:01:07]}
25... Kf8 {[%clk 0:00:11.7]} 26. Qc6 {[%clk 0:00:42.5]} 26... Qa7 {[%clk
0:00:07.8]} 27. Qd6+ {[%clk 0:00:40.5]} 27... Qe7 {[%clk 0:00:07.7]} 28. Qxd4
{[%clk 0:00:39.2]} 28... Rd8 {[%clk 0:00:07.2]} 29. Qxb6 {[%clk 0:00:36.6]}
29... Ne4 {[%clk 0:00:05.6]} 30. Re3 {[%clk 0:00:24.8]} 30... Rd1+ {[%clk
0:00:04.2]} 31. Kh2 {[%clk 0:00:25.4]} 31... Nxf2 {[%clk 0:00:03.8]} 32. Rf3
{[%clk 0:00:21]} 32... Rh1+ {[%clk 0:00:01.8]} 33. Kg3 {[%clk 0:00:21.1]} 33...
Ne4+ {[%clk 0:00:01.8]} 34. Kf4 {[%clk 0:00:21.7]} 34... Qg5+ {[%clk 0:00:01.6]}
35. Kxe4 {[%clk 0:00:21.8]} 35... Re1+ {[%clk 0:00:02.5]} 36. Kd4 {[%clk
0:00:17.7]} 36... Rd1+ {[%clk 0:00:02.7]} 37. Nd3 {[%clk 0:00:11.4]} 37... e5+
{[%clk 0:00:03.1]} 38. Kc3 {[%clk 0:00:10.9]} 38... Qd2# {[%clk 0:00:02.5]} 0-1

[Event "*** Titled Tuesday Blitz"]
[Site "Chess.com"]
[Date "2021.03.02"]
[Round "2"]
[White "Azeryahu"]
[Black "GameOverBro"]
[Result "1-0"]
[WhiteElo "2728"]
[BlackElo "2501"]
[TimeControl "180+1"]
[EndTime "10:18:12 PST"]
[Termination "Azeryahu won by resignation"]

1. d4 {[%clk 0:03:00.6]} 1... Nf6 {[%clk 0:02:59.6]} 2. c4 {[%clk 0:03:01.1]}
2... b5 {[%clk 0:02:59.9]} 3. cxb5 {[%clk 0:02:57.3]} 3... a6 {[%clk 0:03:00.3]}
4. bxa6 {[%clk 0:02:44.9]} 4... Bxa6 {[%clk 0:03:01.2]} 5. Nc3 {[%clk
0:02:45.3]} 5... d5 {[%clk 0:03:01.3]} 6. Nf3 {[%clk 0:02:37.7]} 6... e6 {[%clk
0:03:00.7]} 7. Bg5 {[%clk 0:02:25.9]} 7... Be7 {[%clk 0:03:00.3]} 8. e3 {[%clk
0:02:25.8]} 8... Bxf1 {[%clk 0:03:00]} 9. Kxf1 {[%clk 0:02:26.7]} 9... Nbd7
{[%clk 0:03:00.1]} 10. g3 {[%clk 0:02:25.1]} 10... O-O {[%clk 0:03:00.1]} 11.
Kg2 {[%clk 0:02:25.3]} 11... c5 {[%clk 0:03:00.8]} 12. dxc5 {[%clk 0:02:03.1]}
12... Nxc5 {[%clk 0:03:01.7]} 13. Qe2 {[%clk 0:02:03]} 13... h6 {[%clk
0:02:53.7]} 14. Bxf6 {[%clk 0:02:02.5]} 14... Bxf6 {[%clk 0:02:54.6]} 15. Rhc1
{[%clk 0:01:49.6]} 15... Qa5 {[%clk 0:02:31.9]} 16. Rab1 {[%clk 0:01:46.8]}
16... Rfb8 {[%clk 0:02:28.6]} 17. Nd4 {[%clk 0:01:46.3]} 17... Bxd4 {[%clk
0:02:00.4]} 18. exd4 {[%clk 0:01:46.2]} 18... Na4 {[%clk 0:01:47]} 19. Nd1
{[%clk 0:01:22.7]} 19... Nb6 {[%clk 0:01:40.9]} 20. Nc3 {[%clk 0:01:21.9]} 20...
Na4 {[%clk 0:01:40.5]} 21. Nd1 {[%clk 0:01:00.3]} 21... Nb6 {[%clk 0:01:40.3]}
22. Ra1 {[%clk 0:01:00.9]} 22... Qb4 {[%clk 0:01:29.4]} 23. Qd3 {[%clk
0:00:51.2]} 23... Nc4 {[%clk 0:01:26.7]} 24. b3 {[%clk 0:00:49.5]} 24... Na3
{[%clk 0:01:24.6]} 25. Nc3 {[%clk 0:00:40.5]} 25... Rc8 {[%clk 0:01:24]} 26. Ne2
{[%clk 0:00:39]} 26... Rab8 {[%clk 0:00:58.5]} 27. h4 {[%clk 0:00:38]} 27... g6
{[%clk 0:00:53.3]} 28. Rxc8+ {[%clk 0:00:37]} 28... Rxc8 {[%clk 0:00:53]} 29.
Rc1 {[%clk 0:00:37.9]} 29... Rxc1 {[%clk 0:00:42.2]} 30. Nxc1 {[%clk 0:00:38.8]}
30... h5 {[%clk 0:00:34.6]} 31. Ne2 {[%clk 0:00:36.9]} 31... Qe1 {[%clk
0:00:32.9]} 32. Nf4 {[%clk 0:00:30.1]} 32... Kf8 {[%clk 0:00:20.2]} 33. Qe3
{[%clk 0:00:25.9]} 33... Qa5 {[%clk 0:00:15.1]} 34. Qe5 {[%clk 0:00:22.1]} 34...
Nc2 {[%clk 0:00:14.7]} 35. Qh8+ {[%clk 0:00:18.6]} 35... Ke7 {[%clk 0:00:14.8]}
36. Qg7 {[%clk 0:00:19.5]} 36... Ke8 {[%clk 0:00:14.7]} 37. Nxg6 {[%clk
0:00:12.8]} 37... fxg6 {[%clk 0:00:13.4]} 38. Qxg6+ {[%clk 0:00:13.7]} 38... Kd7
{[%clk 0:00:13.1]} 39. Qxc2 {[%clk 0:00:14.6]} 39... Qb4 {[%clk 0:00:09.9]} 40.
Qd1 {[%clk 0:00:13.9]} 40... Qa3 {[%clk 0:00:08.5]} 41. Qxh5 {[%clk 0:00:13.7]}
41... Qxa2 {[%clk 0:00:08.8]} 42. Qf7+ {[%clk 0:00:13.3]} 42... Kd6 {[%clk
0:00:09.1]} 43. Qf4+ {[%clk 0:00:13.6]} 43... Kd7 {[%clk 0:00:09.6]} 44. Qe3
{[%clk 0:00:14.5]} 44... Qb1 {[%clk 0:00:08.9]} 45. h5 {[%clk 0:00:14.8]} 45...
Ke7 {[%clk 0:00:08.1]} 46. Qg5+ {[%clk 0:00:13.8]} 46... Kd6 {[%clk 0:00:07.9]}
47. Qe5+ {[%clk 0:00:12.6]} 47... Kd7 {[%clk 0:00:08]} 48. h6 {[%clk 0:00:13.5]}
48... Qg6 {[%clk 0:00:07.9]} 49. Qg7+ {[%clk 0:00:13.3]} 1-0

[Event "*** Titled Tuesday Blitz"]
[Site "Chess.com"]
[Date "2021.03.02"]
[Round "2"]
[White "Galiev_Azat"]
[Black "tdf98pantani"]
[Result "1-0"]
[WhiteElo "2389"]
[BlackElo "2644"]
[TimeControl "180+1"]
[EndTime "10:18:12 PST"]
[Termination "Galiev_Azat won by resignation"]

1. d4 {[%clk 0:02:54.2]} 1... d5 {[%clk 0:02:59.5]} 2. Bf4 {[%clk 0:02:53.5]}
2... c5 {[%clk 0:02:59.1]} 3. e3 {[%clk 0:02:53.1]} 3... Nc6 {[%clk 0:02:59.4]}
4. c3 {[%clk 0:02:50.8]} 4... cxd4 {[%clk 0:02:59.7]} 5. exd4 {[%clk 0:02:50.3]}
5... Bf5 {[%clk 0:02:59.9]} 6. Qb3 {[%clk 0:02:47.2]} 6... Qd7 {[%clk
0:02:58.7]} 7. Nf3 {[%clk 0:02:46.6]} 7... e6 {[%clk 0:02:56.9]} 8. Ne5 {[%clk
0:02:43.7]} 8... Nxe5 {[%clk 0:02:56.8]} 9. Bxe5 {[%clk 0:02:43.2]} 9... Ne7
{[%clk 0:02:56.8]} 10. Nd2 {[%clk 0:02:36]} 10... Nc6 {[%clk 0:02:56.5]} 11. Bg3
{[%clk 0:02:33.2]} 11... Bd6 {[%clk 0:02:36.7]} 12. Nf3 {[%clk 0:02:29.9]} 12...
O-O {[%clk 0:02:36]} 13. Be2 {[%clk 0:02:28]} 13... Rab8 {[%clk 0:02:29.3]} 14.
O-O {[%clk 0:02:20.6]} 14... Na5 {[%clk 0:02:24.3]} 15. Qb5 {[%clk 0:02:13.8]}
15... Qxb5 {[%clk 0:02:22.9]} 16. Bxb5 {[%clk 0:02:14.5]} 16... Bxg3 {[%clk
0:02:22.9]} 17. hxg3 {[%clk 0:02:14.1]} 17... a6 {[%clk 0:02:23.1]} 18. Be2
{[%clk 0:02:07.9]} 18... b5 {[%clk 0:02:23.3]} 19. b4 {[%clk 0:02:03.5]} 19...
Nb7 {[%clk 0:02:15.7]} 20. a4 {[%clk 0:02:02.1]} 20... Nd6 {[%clk 0:02:13.6]}
21. axb5 {[%clk 0:02:01.6]} 21... axb5 {[%clk 0:02:13.4]} 22. Ra6 {[%clk
0:01:59.2]} 22... Rfd8 {[%clk 0:02:12.5]} 23. Ne5 {[%clk 0:01:54.2]} 23... Rbc8
{[%clk 0:02:10.9]} 24. Rfa1 {[%clk 0:01:43.5]} 24... f6 {[%clk 0:02:01.9]} 25.
Nc6 {[%clk 0:01:25.5]} 25... Rd7 {[%clk 0:02:01.9]} 26. R1a3 {[%clk 0:01:05]}
26... h6 {[%clk 0:01:32.2]} 27. Na7 {[%clk 0:00:59.9]} 27... Rb8 {[%clk
0:01:26.9]} 28. Nc6 {[%clk 0:00:59]} 28... Rbb7 {[%clk 0:01:25.8]} 29. Ra8+
{[%clk 0:00:53.2]} 29... Kh7 {[%clk 0:01:25.6]} 30. g4 {[%clk 0:00:49.5]} 30...
Bg6 {[%clk 0:01:17.3]} 31. Nd8 {[%clk 0:00:48.8]} 31... e5 {[%clk 0:01:06.4]}
32. Nxb7 {[%clk 0:00:46.2]} 32... Rxb7 {[%clk 0:01:05.5]} 33. R3a7 {[%clk
0:00:42.2]} 33... Rb6 {[%clk 0:01:04.2]} 34. Ra6 {[%clk 0:00:41.3]} 34... Rxa6
{[%clk 0:01:04.3]} 35. Rxa6 {[%clk 0:00:41.2]} 35... Ne4 {[%clk 0:01:04.4]} 36.
Rc6 {[%clk 0:00:34.4]} 36... Be8 {[%clk 0:01:02.5]} 37. Rc8 {[%clk 0:00:34.1]}
37... Bd7 {[%clk 0:01:02.3]} 38. Rc7 {[%clk 0:00:34.3]} 38... Be8 {[%clk
0:01:02.5]} 39. f3 {[%clk 0:00:32.3]} 39... Nd6 {[%clk 0:01:00.7]} 40. Kf2
{[%clk 0:00:29.5]} 40... Kg6 {[%clk 0:00:55.8]} 41. Bd3+ {[%clk 0:00:27.9]}
41... e4 {[%clk 0:00:56]} 42. Be2 {[%clk 0:00:20.5]} 42... f5 {[%clk 0:00:45.8]}
43. gxf5+ {[%clk 0:00:20]} 43... Nxf5 {[%clk 0:00:46.2]} 44. Rc5 {[%clk
0:00:18.2]} 44... e3+ {[%clk 0:00:45.8]} 45. Ke1 {[%clk 0:00:17.6]} 45... Nh4
{[%clk 0:00:42.8]} 46. g3 {[%clk 0:00:15.6]} 46... Nf5 {[%clk 0:00:42.7]} 47. g4
{[%clk 0:00:15.8]} 47... Nh4 {[%clk 0:00:42.5]} 48. Rxd5 {[%clk 0:00:15.6]}
48... Kf6 {[%clk 0:00:40.4]} 49. Bxb5 {[%clk 0:00:14.8]} 49... Bf7 {[%clk
0:00:38.6]} 50. Rd6+ {[%clk 0:00:14.4]} 50... Kg5 {[%clk 0:00:39]} 51. Ke2
{[%clk 0:00:13.8]} 51... Ng2 {[%clk 0:00:39.2]} 52. Rd7 {[%clk 0:00:12.2]} 52...
Kf6 {[%clk 0:00:37.8]} 53. c4 {[%clk 0:00:10.6]} 53... g6 {[%clk 0:00:35.7]} 54.
d5 {[%clk 0:00:10.8]} 54... Be6 {[%clk 0:00:36.4]} 55. dxe6 {[%clk 0:00:10.3]}
1-0

[Event "*** Titled Tuesday Blitz"]
[Site "Chess.com"]
[Date "2021.03.02"]
[Round "2"]
[White "Kostukov_Alex"]
[Black "leejunhyeok"]
[Result "1-0"]
[WhiteElo "2331"]
[BlackElo "2575"]
[TimeControl "180+1"]
[EndTime "10:18:13 PST"]
[Termination "Kostukov_Alex won by checkmate"]

1. g3 {[%clk 0:02:52.2]} 1... Nf6 {[%clk 0:02:59.8]} 2. Bg2 {[%clk 0:02:45.4]}
2... d5 {[%clk 0:02:59.9]} 3. d3 {[%clk 0:02:44.9]} 3... e6 {[%clk 0:02:59.7]}
4. e4 {[%clk 0:02:45.4]} 4... dxe4 {[%clk 0:02:52]} 5. dxe4 {[%clk 0:02:41.7]}
5... Qxd1+ {[%clk 0:02:52.9]} 6. Kxd1 {[%clk 0:02:41.9]} 6... Bc5 {[%clk
0:02:51.8]} 7. f3 {[%clk 0:02:42.2]} 7... Nc6 {[%clk 0:02:46.5]} 8. Nd2 {[%clk
0:02:42]} 8... a5 {[%clk 0:02:44.1]} 9. a4 {[%clk 0:02:40.2]} 9... b6 {[%clk
0:02:38]} 10. c3 {[%clk 0:02:33.7]} 10... Ba6 {[%clk 0:02:34.4]} 11. Bf1 {[%clk
0:02:33.1]} 11... Bxf1 {[%clk 0:02:28]} 12. Nxf1 {[%clk 0:02:32]} 12... O-O-O+
{[%clk 0:02:28.9]} 13. Ke2 {[%clk 0:02:31.9]} 13... Rd7 {[%clk 0:02:09.5]} 14.
Be3 {[%clk 0:02:10.8]} 14... Bxe3 {[%clk 0:01:51.6]} 15. Nxe3 {[%clk 0:02:04.5]}
15... Rhd8 {[%clk 0:01:52.1]} 16. Rd1 {[%clk 0:02:04.1]} 16... Rxd1 {[%clk
0:01:34.4]} 17. Nxd1 {[%clk 0:02:05]} 17... Ne5 {[%clk 0:01:17.5]} 18. Ne3
{[%clk 0:02:04.8]} 18... Nd3 {[%clk 0:01:17.4]} 19. Nc4 {[%clk 0:01:58.6]} 19...
Nc5 {[%clk 0:01:11.4]} 20. Nh3 {[%clk 0:01:48.2]} 20... Nxa4 {[%clk 0:01:04.8]}
21. Ra1 {[%clk 0:01:38.4]} 21... Nc5 {[%clk 0:01:02.1]} 22. Ng5 {[%clk 0:01:37]}
22... Rd7 {[%clk 0:00:40.7]} 23. Ne5 {[%clk 0:01:31.7]} 23... Re7 {[%clk
0:00:38]} 24. b4 {[%clk 0:01:24.1]} 24... axb4 {[%clk 0:00:35.1]} 25. cxb4
{[%clk 0:01:22.8]} 25... Ncd7 {[%clk 0:00:32.1]} 26. Nc6 {[%clk 0:01:17.4]}
26... Re8 {[%clk 0:00:32.2]} 27. Nxf7 {[%clk 0:01:07.9]} 27... Kb7 {[%clk
0:00:28.2]} 28. Nfd8+ {[%clk 0:00:49]} 28... Rxd8 {[%clk 0:00:07]} 29. Nxd8+
{[%clk 0:00:48.6]} 29... Kc8 {[%clk 0:00:07.7]} 30. Nxe6 {[%clk 0:00:48.7]}
30... g6 {[%clk 0:00:07.1]} 31. Nf8 {[%clk 0:00:38.5]} 31... Ne5 {[%clk
0:00:04.6]} 32. b5 {[%clk 0:00:25.5]} 32... Kb7 {[%clk 0:00:03.6]} 33. Ne6
{[%clk 0:00:23.6]} 33... Nc4 {[%clk 0:00:03.3]} 34. Nd8+ {[%clk 0:00:23.6]}
34... Kb8 {[%clk 0:00:03.3]} 35. Nc6+ {[%clk 0:00:24.2]} 35... Kb7 {[%clk
0:00:03.8]} 36. Ra7+ {[%clk 0:00:24]} 36... Kc8 {[%clk 0:00:04.4]} 37. Ra8+
{[%clk 0:00:24.2]} 37... Kd7 {[%clk 0:00:05]} 38. Rf8 {[%clk 0:00:20.7]} 38...
Ne8 {[%clk 0:00:04.5]} 39. Rf7+ {[%clk 0:00:19.2]} 39... Ke6 {[%clk 0:00:05]}
40. Re7+ {[%clk 0:00:18.4]} 40... Kf6 {[%clk 0:00:05.1]} 41. Rxe8 {[%clk
0:00:19.3]} 41... Nd6 {[%clk 0:00:05.3]} 42. e5+ {[%clk 0:00:18.1]} 42... Kf7
{[%clk 0:00:05.9]} 43. Re7+ {[%clk 0:00:17.8]} 43... Kf8 {[%clk 0:00:05.8]} 44.
exd6 {[%clk 0:00:18.7]} 44... cxd6 {[%clk 0:00:06.4]} 45. Rxh7 {[%clk
0:00:18.3]} 45... d5 {[%clk 0:00:07.1]} 46. Kd3 {[%clk 0:00:18.7]} 46... d4
{[%clk 0:00:08]} 47. Kxd4 {[%clk 0:00:19.2]} 47... g5 {[%clk 0:00:08.9]} 48. Ke5
{[%clk 0:00:19.3]} 48... g4 {[%clk 0:00:09.8]} 49. fxg4 {[%clk 0:00:19.7]} 49...
Kg8 {[%clk 0:00:10.5]} 50. Re7 {[%clk 0:00:18.8]} 50... Kf8 {[%clk 0:00:11.4]}
51. Kf6 {[%clk 0:00:19.2]} 51... Kg8 {[%clk 0:00:12.3]} 52. Kg6 {[%clk
0:00:19.2]} 52... Kf8 {[%clk 0:00:13.2]} 53. Re6 {[%clk 0:00:19.5]} 53... Kg8
{[%clk 0:00:13.5]} 54. Re8# {[%clk 0:00:19.7]} 1-0